[Event "Live Chess"]
[Site "Chess.com"]
[Date "2024.06.01"]
[Round "-"]
[White "Brooms1989"]
[Black "matt1979"]
[Result "1-0"]
[WhiteElo "1099"]
[BlackElo "1387"]
[TimeControl "300"]
[EndTime "13:03:42 PDT"]
[Termination "Brooms1989 won on time"]

1. e4 {[%clk 0:04:57.7]} 1... d6 {[%clk 0:04:57.8]} 2. d4 {[%clk 0:04:52.7]}
2... Nf6 {[%clk 0:04:55.6]} 3. Nc3 {[%clk 0:04:41.2]} 3... Nbd7 {[%clk
0:04:53.6]} 4. Nf3 {[%clk 0:04:37.6]} 4... e5 {[%clk 0:04:52]} 5. dxe5 {[%clk
0:04:35.5]} 5... dxe5 {[%clk 0:04:48.5]} 6. Bc4 {[%clk 0:04:32.5]} 6... Bb4
{[%clk 0:04:46.5]} 7. Bd2 {[%clk 0:04:25.9]} 7... O-O {[%clk 0:04:42.1]} 8. a4
{[%clk 0:04:24.1]} 8... c6 {[%clk 0:04:39]} 9. O-O {[%clk 0:04:15.6]} 9... Nc5
{[%clk 0:04:23.6]} 10. Re1 {[%clk 0:04:06.7]} 10... Bg4 {[%clk 0:04:21.3]} 11.
h3 {[%clk 0:04:02.4]} 11... Bxf3 {[%clk 0:04:19.9]} 12. Qxf3 {[%clk 0:03:59.7]}
12... Bxc3 {[%clk 0:04:11.6]} 13. Bxc3 {[%clk 0:03:54.3]} 13... Re8 {[%clk
0:03:54.6]} 14. Rad1 {[%clk 0:03:37.6]} 14... Qc7 {[%clk 0:03:52.6]} 15. b3
{[%clk 0:03:30.8]} 15... a6 {[%clk 0:03:42.3]} 16. Rd2 {[%clk 0:03:16.5]} 16...
b5 {[%clk 0:03:38.5]} 17. axb5 {[%clk 0:03:12.3]} 17... axb5 {[%clk 0:03:34.5]}
18. Be2 {[%clk 0:03:09.4]} 18... Ncxe4 {[%clk 0:03:26.5]} 19. Rd3 {[%clk
0:02:59.3]} 19... Nxc3 {[%clk 0:03:15.3]} 20. Rxc3 {[%clk 0:02:55.8]} 20... Ra6
{[%clk 0:02:53.2]} 21. Bxb5 {[%clk 0:02:50.8]} 21... Rb6 {[%clk 0:02:37.3]} 22.
Rxc6 {[%clk 0:02:45.4]} 22... Rxc6 {[%clk 0:02:33]} 23. Qxc6 {[%clk 0:02:45.3]}
23... Qxc6 {[%clk 0:02:21.7]} 24. Bxc6 {[%clk 0:02:45.2]} 24... Rc8 {[%clk
0:02:14.8]} 25. Rd1 {[%clk 0:02:35]} 25... h6 {[%clk 0:02:08.7]} 26. Rd6 {[%clk
0:02:25.3]} 26... Kf8 {[%clk 0:01:48.3]} 27. c4 {[%clk 0:02:14.1]} 27... Ke7
{[%clk 0:01:41.6]} 28. c5 {[%clk 0:02:10.3]} 28... Rb8 {[%clk 0:01:24.5]} 29.
Ba4 {[%clk 0:02:03.7]} 29... Ne4 {[%clk 0:01:14.4]} 30. Rb6 {[%clk 0:01:45.2]}
30... Rc8 {[%clk 0:01:01.8]} 31. c6 {[%clk 0:01:37.6]} 31... Nd6 {[%clk
0:00:51.9]} 32. Rb4 {[%clk 0:01:22.5]} 32... Rc7 {[%clk 0:00:45.7]} 33. Rg4
{[%clk 0:01:10.9]} 33... g6 {[%clk 0:00:43]} 34. b4 {[%clk 0:01:06]} 34... h5
{[%clk 0:00:37.4]} 35. Rg3 {[%clk 0:01:04.7]} 35... Nc8 {[%clk 0:00:28.4]} 36.
b5 {[%clk 0:00:59.9]} 36... Nb6 {[%clk 0:00:27.1]} 37. Bd1 {[%clk 0:00:50.4]}
37... Kd6 {[%clk 0:00:24.7]} 38. Be2 {[%clk 0:00:40.9]} 38... Kc5 {[%clk
0:00:21.1]} 39. Rc3+ {[%clk 0:00:40.1]} 39... Kd6 {[%clk 0:00:19.1]} 40. g3
{[%clk 0:00:36.8]} 40... f6 {[%clk 0:00:16.3]} 41. Kg2 {[%clk 0:00:33.4]} 41...
Nd5 {[%clk 0:00:14.5]} 42. Rd3 {[%clk 0:00:29.2]} 42... Kc5 {[%clk 0:00:11.7]}
43. Rd1 {[%clk 0:00:25]} 43... Nc3 {[%clk 0:00:07.3]} 44. Rc1 {[%clk 0:00:22.8]}
44... Kb4 {[%clk 0:00:04.7]} 45. Bd3 {[%clk 0:00:19.9]} 45... Nxb5 {[%clk
0:00:02.4]} 46. Bxb5 {[%clk 0:00:18.7]} 46... Kxb5 {[%clk 0:00:02]} 47. Kf3
{[%clk 0:00:16.6]} 47... Rxc6 {[%clk 0:00:01.9]} 48. Rxc6 {[%clk 0:00:15.2]}
48... Kxc6 {[%clk 0:00:01.1]} 49. Ke4 {[%clk 0:00:14.9]} 49... Kc5 {[%clk
0:00:00.1]} 50. f3 {[%clk 0:00:14.8]} 1-0

[Event "Live Chess"]
[Site "Chess.com"]
[Date "2024.06.01"]
[Round "-"]
[White "NottheBishopSacrifice"]
[Black "PureDashingOctopus"]
[Result "0-1"]
[WhiteElo "2247"]
[BlackElo "2269"]
[TimeControl "300"]
[EndTime "13:03:42 PDT"]
[Termination "PureDashingOctopus won by resignation"]

1. d4 {[%clk 0:04:56.3]} 1... Nf6 {[%clk 0:04:58.6]} 2. Nf3 {[%clk 0:04:55.3]}
2... g6 {[%clk 0:04:57.1]} 3. g3 {[%clk 0:04:53.3]} 3... Bg7 {[%clk 0:04:54.8]}
4. Bg2 {[%clk 0:04:53]} 4... O-O {[%clk 0:04:53.2]} 5. O-O {[%clk 0:04:52.5]}
5... d5 {[%clk 0:04:51.8]} 6. b4 {[%clk 0:04:50.9]} 6... c6 {[%clk 0:04:48.7]}
7. Bd2 {[%clk 0:04:46.2]} 7... Nbd7 {[%clk 0:04:46.6]} 8. a4 {[%clk 0:04:42.5]}
8... Nb6 {[%clk 0:04:45.5]} 9. a5 {[%clk 0:04:40.3]} 9... Nc4 {[%clk 0:04:43.9]}
10. Na3 {[%clk 0:04:39.7]} 10... Nxd2 {[%clk 0:04:42.4]} 11. Nxd2 {[%clk
0:04:36.6]} 11... Ne4 {[%clk 0:04:42.3]} 12. Nxe4 {[%clk 0:04:35.3]} 12... dxe4
{[%clk 0:04:41.8]} 13. c3 {[%clk 0:04:34.6]} 13... Bf5 {[%clk 0:04:39.4]} 14. e3
{[%clk 0:04:33.2]} 14... e5 {[%clk 0:04:36.3]} 15. Nc4 {[%clk 0:04:32.4]} 15...
exd4 {[%clk 0:04:35.3]} 16. cxd4 {[%clk 0:04:32.3]} 16... Qe7 {[%clk 0:04:33]}
17. Qb3 {[%clk 0:04:31]} 17... Be6 {[%clk 0:04:30.4]} 18. Rac1 {[%clk
0:04:29.7]} 18... Bd5 {[%clk 0:04:29.7]} 19. Qb1 {[%clk 0:04:26.3]} 19... f5
{[%clk 0:04:27.1]} 20. Na3 {[%clk 0:04:24.8]} 20... g5 {[%clk 0:04:23.9]} 21.
Rc5 {[%clk 0:04:21.5]} 21... f4 {[%clk 0:04:19.1]} 22. Rfc1 {[%clk 0:04:07.6]}
22... b6 {[%clk 0:03:59.4]} 23. axb6 {[%clk 0:04:03.9]} 23... axb6 {[%clk
0:03:57.6]} 24. R5c3 {[%clk 0:04:03]} 24... fxg3 {[%clk 0:03:53.9]} 25. hxg3
{[%clk 0:03:58.2]} 25... Ra4 {[%clk 0:03:49.8]} 26. Nc4 {[%clk 0:03:55.4]} 26...
Rxb4 {[%clk 0:03:48.1]} 27. Qc2 {[%clk 0:03:54.9]} 27... b5 {[%clk 0:03:45.1]}
28. Na5 {[%clk 0:03:51.9]} 28... Ra4 {[%clk 0:03:24.9]} 29. Nxc6 {[%clk
0:03:50.5]} 29... Qe6 {[%clk 0:03:17]} 30. Rb1 {[%clk 0:03:35]} 30... Ra2 {[%clk
0:03:12.2]} 31. Rb2 {[%clk 0:03:30.4]} 31... Rxb2 {[%clk 0:03:09.6]} 32. Qxb2
{[%clk 0:03:30.3]} 32... Bxc6 {[%clk 0:03:08.8]} 33. Qb4 {[%clk 0:03:26.2]}
33... Qf6 {[%clk 0:02:50.7]} 34. Rc2 {[%clk 0:03:23.5]} 34... Ra8 {[%clk
0:02:37.8]} 35. Qc5 {[%clk 0:03:17.9]} 35... Ra1+ {[%clk 0:02:33.8]} 36. Rc1
{[%clk 0:03:17.2]} 36... Rxc1+ {[%clk 0:02:32.7]} 37. Qxc1 {[%clk 0:03:17.1]}
37... Qd6 {[%clk 0:02:31.6]} 38. Qb1 {[%clk 0:03:14.7]} 38... Qd5 {[%clk
0:02:28]} 39. Qa1 {[%clk 0:03:11.1]} 39... b4 {[%clk 0:02:25.6]} 40. Qa7 {[%clk
0:03:10.1]} 40... b3 {[%clk 0:02:22.3]} 41. Qb8+ {[%clk 0:03:09.5]} 41... Bf8
{[%clk 0:02:19.6]} 42. Bh3 {[%clk 0:03:08]} 42... h5 {[%clk 0:02:08.4]} 43. Bc8
{[%clk 0:02:57.5]} 43... Kf7 {[%clk 0:01:26.9]} 44. Qa7+ {[%clk 0:02:53]} 44...
Be7 {[%clk 0:01:24.4]} 45. Qb6 {[%clk 0:02:44.2]} 45... Qb5 {[%clk 0:01:21]} 46.
Qc7 {[%clk 0:02:38.1]} 46... b2 {[%clk 0:01:19.1]} 0-1

[Event "Live Chess"]
[Site "Chess.com"]
[Date "2024.06.01"]
[Round "-"]
[White "bobby_jamesFischer86"]
[Black "Tushinskiy"]
[Result "0-1"]
[WhiteElo "1618"]
[BlackElo "2260"]
[TimeControl "300"]
[EndTime "13:04:01 PDT"]
[Termination "Tushinskiy won by resignation"]

1. d4 {[%clk 0:04:53.1]} 1... d5 {[%clk 0:04:59]} 2. c4 {[%clk 0:04:51.6]} 2...
c6 {[%clk 0:04:58.9]} 3. Nc3 {[%clk 0:04:50.2]} 3... e6 {[%clk 0:04:58]} 4. cxd5
{[%clk 0:04:48.9]} 4... exd5 {[%clk 0:04:57.9]} 5. Nf3 {[%clk 0:04:47.2]} 5...
Nf6 {[%clk 0:04:57]} 6. Bg5 {[%clk 0:04:45.7]} 6... Be7 {[%clk 0:04:56.1]} 7. e3
{[%clk 0:04:39.5]} 7... O-O {[%clk 0:04:54.8]} 8. Bd3 {[%clk 0:04:37.9]} 8...
Bg4 {[%clk 0:04:53.9]} 9. h3 {[%clk 0:04:36.1]} 9... Bh5 {[%clk 0:04:52.9]} 10.
Be2 {[%clk 0:04:35.3]} 10... Nbd7 {[%clk 0:04:51.3]} 11. O-O {[%clk 0:04:33.9]}
11... Re8 {[%clk 0:04:49.4]} 12. Ne5 {[%clk 0:04:30.3]} 12... Bg6 {[%clk
0:04:48]} 13. f4 {[%clk 0:04:27.6]} 13... Be4 {[%clk 0:04:43.6]} 14. Nxd7 {[%clk
0:04:20]} 14... Qxd7 {[%clk 0:04:40.9]} 15. Bxf6 {[%clk 0:04:18.5]} 15... Bxf6
{[%clk 0:04:40.8]} 16. Nxe4 {[%clk 0:04:16.9]} 16... Rxe4 {[%clk 0:04:40.3]} 17.
Qd2 {[%clk 0:04:13.9]} 17... Rae8 {[%clk 0:04:38.3]} 18. Rf3 {[%clk 0:04:09.7]}
18... Qe7 {[%clk 0:04:35.9]} 19. Kf2 {[%clk 0:04:05.7]} 19... Bxd4 {[%clk
0:04:33.8]} 20. Re1 {[%clk 0:03:43.4]} 20... Bxe3+ {[%clk 0:04:31.5]} 21. Rxe3
{[%clk 0:03:42]} 21... Rxe3 {[%clk 0:04:31.4]} 0-1

[Event "Live Chess"]
[Site "Chess.com"]
[Date "2024.06.01"]
[Round "-"]
[White "gmnorfolk"]
[Black "SavagePawn7"]
[Result "1-0"]
[WhiteElo "2072"]
[BlackElo "680"]
[TimeControl "300"]
[EndTime "13:04:10 PDT"]
[Termination "gmnorfolk won by resignation"]

1. c4 {[%clk 0:04:58]} 1... e5 {[%clk 0:04:54.2]} 2. Nc3 {[%clk 0:04:54]} 2...
Nf6 {[%clk 0:04:51.5]} 3. Nf3 {[%clk 0:04:52.9]} 3... e4 {[%clk 0:04:46.4]} 4.
Ng5 {[%clk 0:04:51.2]} 4... Nc6 {[%clk 0:04:39.2]} 5. Ngxe4 {[%clk 0:04:34]}
5... Nxe4 {[%clk 0:04:36.8]} 6. Nxe4 {[%clk 0:04:30.8]} 6... Bb4 {[%clk
0:04:29.2]} 7. a3 {[%clk 0:04:28.4]} 7... Ba5 {[%clk 0:04:25.2]} 8. b4 {[%clk
0:04:26.1]} 8... Bb6 {[%clk 0:04:13.6]} 9. c5 {[%clk 0:04:25.1]} 9... Bxc5
{[%clk 0:04:12.4]} 10. bxc5 {[%clk 0:04:23.2]} 10... d5 {[%clk 0:04:04.6]} 11.
cxd6 {[%clk 0:04:21.1]} 11... cxd6 {[%clk 0:03:56.9]} 12. Bb2 {[%clk 0:04:19.2]}
12... f6 {[%clk 0:03:53.9]} 13. g3 {[%clk 0:04:16.3]} 13... d5 {[%clk
0:03:51.8]} 14. Nc3 {[%clk 0:04:14.3]} 14... Bg4 {[%clk 0:03:44.2]} 15. Bg2
{[%clk 0:04:11.4]} 1-0

[Event "Live Chess"]
[Site "Chess.com"]
[Date "2024.06.01"]
[Round "-"]
[White "ProfPoisson"]
[Black "FlyingChessKestrel13"]
[Result "0-1"]
[WhiteElo "1278"]
[BlackElo "2078"]
[TimeControl "300"]
[EndTime "13:04:13 PDT"]
[Termination "FlyingChessKestrel13 won by resignation"]

1. e4 {[%clk 0:04:54.4]} 1... c5 {[%clk 0:04:58.3]} 2. Nc3 {[%clk 0:04:51.2]}
2... Nc6 {[%clk 0:04:58.2]} 3. f4 {[%clk 0:04:48.7]} 3... e6 {[%clk 0:04:56.9]}
4. Bb5 {[%clk 0:04:44.7]} 4... a6 {[%clk 0:04:56.3]} 5. Bxc6 {[%clk 0:04:42.3]}
5... bxc6 {[%clk 0:04:56.2]} 6. Nf3 {[%clk 0:04:40.3]} 6... d5 {[%clk
0:04:55.8]} 7. e5 {[%clk 0:04:34.9]} 7... Ne7 {[%clk 0:04:54.2]} 8. O-O {[%clk
0:04:32.4]} 8... Ng6 {[%clk 0:04:49.8]} 9. d3 {[%clk 0:04:20]} 9... Be7 {[%clk
0:04:48.9]} 10. b3 {[%clk 0:03:57]} 10... O-O {[%clk 0:04:47.3]} 11. Qd2 {[%clk
0:03:55]} 11... f6 {[%clk 0:04:44.9]} 12. Ba3 {[%clk 0:03:44.2]} 12... fxe5
{[%clk 0:04:43.4]} 13. Nxe5 {[%clk 0:03:40]} 13... Nxe5 {[%clk 0:04:41.1]} 14.
fxe5 {[%clk 0:03:37.5]} 14... Bd7 {[%clk 0:04:37]} 15. Na4 {[%clk 0:03:29.1]}
15... Qc7 {[%clk 0:04:34.3]} 16. Bxc5 {[%clk 0:03:21.9]} 16... Rxf1+ {[%clk
0:04:24.4]} 17. Rxf1 {[%clk 0:03:19.1]} 17... Be8 {[%clk 0:04:20.2]} 18. d4
{[%clk 0:02:52]} 18... Bg6 {[%clk 0:04:16]} 19. Bxe7 {[%clk 0:02:47.6]} 19...
Qxe7 {[%clk 0:04:13.4]} 20. Nc5 {[%clk 0:02:46.3]} 20... a5 {[%clk 0:04:07.1]}
21. a4 {[%clk 0:02:41]} 21... h6 {[%clk 0:04:00.3]} 22. c3 {[%clk 0:02:39.3]}
22... Bf5 {[%clk 0:03:59.2]} 23. Rf3 {[%clk 0:02:22.6]} 23... Rf8 {[%clk
0:03:54.6]} 24. Rg3 {[%clk 0:02:17]} 24... Qf7 {[%clk 0:03:49.7]} 25. Qxh6
{[%clk 0:02:11.5]} 25... Bg6 {[%clk 0:03:40.3]} 26. Qc1 {[%clk 0:01:45.2]} 26...
Qf2+ {[%clk 0:03:05.3]} 27. Kh1 {[%clk 0:01:36.6]} 27... Qf1+ {[%clk 0:03:04]}
0-1

[Event "Live Chess"]
[Site "Chess.com"]
[Date "2024.06.01"]
[Round "-"]
[White "stevochess11"]
[Black "lateforthesky"]
[Result "0-1"]
[WhiteElo "1706"]
[BlackElo "2156"]
[TimeControl "300"]
[EndTime "13:04:17 PDT"]
[Termination "lateforthesky won by resignation"]

1. d4 {[%clk 0:04:58.2]} 1... Nf6 {[%clk 0:04:58.6]} 2. Nf3 {[%clk 0:04:57.6]}
2... g6 {[%clk 0:04:57.8]} 3. Nc3 {[%clk 0:04:56.7]} 3... d5 {[%clk 0:04:56]} 4.
Bf4 {[%clk 0:04:55.8]} 4... Bg7 {[%clk 0:04:53.8]} 5. e3 {[%clk 0:04:55]} 5...
O-O {[%clk 0:04:50.5]} 6. Be2 {[%clk 0:04:54.2]} 6... a6 {[%clk 0:04:38.4]} 7.
Ne5 {[%clk 0:04:52.5]} 7... c6 {[%clk 0:04:23.9]} 8. h4 {[%clk 0:04:50.6]} 8...
h5 {[%clk 0:04:19.9]} 9. f3 {[%clk 0:04:43.1]} 9... Nbd7 {[%clk 0:04:18.3]} 10.
g4 {[%clk 0:04:40.7]} 10... hxg4 {[%clk 0:03:57.6]} 11. fxg4 {[%clk 0:04:35.3]}
11... Nxe5 {[%clk 0:03:56.2]} 12. Bxe5 {[%clk 0:04:23.9]} 12... Ne4 {[%clk
0:03:54.2]} 13. Bxg7 {[%clk 0:04:14.1]} 13... Kxg7 {[%clk 0:03:52.9]} 14. Nxe4
{[%clk 0:03:55.8]} 14... dxe4 {[%clk 0:03:52.8]} 15. Qd2 {[%clk 0:03:48]} 15...
e5 {[%clk 0:03:42.3]} 16. O-O-O {[%clk 0:03:44.8]} 16... exd4 {[%clk 0:03:31.5]}
17. Qxd4+ {[%clk 0:03:35.9]} 17... Qxd4 {[%clk 0:03:29.6]} 18. Rxd4 {[%clk
0:03:35.7]} 18... f5 {[%clk 0:03:21.1]} 19. gxf5 {[%clk 0:03:31.8]} 19... gxf5
{[%clk 0:03:16.6]} 20. Rg1+ {[%clk 0:03:27.7]} 20... Kf6 {[%clk 0:03:09.2]} 21.
Bh5 {[%clk 0:03:14.8]} 21... Be6 {[%clk 0:03:03.7]} 22. Rg6+ {[%clk 0:02:54.9]}
22... Ke7 {[%clk 0:03:01.4]} 23. Rg7+ {[%clk 0:02:52.9]} 23... Kf6 {[%clk
0:03:00.2]} 24. Rg6+ {[%clk 0:02:51]} 24... Ke5 {[%clk 0:02:55.6]} 25. Be2
{[%clk 0:02:26.5]} 25... Rg8 {[%clk 0:02:48.9]} 26. Rxe6+ {[%clk 0:02:20.6]}
26... Kxe6 {[%clk 0:02:46.6]} 27. Bc4+ {[%clk 0:02:18.8]} 27... Ke7 {[%clk
0:02:44.1]} 28. Bxg8 {[%clk 0:02:08.5]} 28... Rxg8 {[%clk 0:02:44]} 29. Rb4
{[%clk 0:02:06.2]} 29... b5 {[%clk 0:02:38.9]} 30. a4 {[%clk 0:02:04.2]} 30...
Rh8 {[%clk 0:02:32.9]} 31. axb5 {[%clk 0:02:02.3]} 31... axb5 {[%clk 0:02:32]}
32. c4 {[%clk 0:02:00.2]} 32... bxc4 {[%clk 0:02:25.1]} 33. Rxc4 {[%clk
0:01:58]} 33... Kd6 {[%clk 0:02:23.3]} 34. b4 {[%clk 0:01:56.1]} 34... Rxh4
{[%clk 0:02:20.6]} 35. Rc5 {[%clk 0:01:51.8]} 35... f4 {[%clk 0:02:15.6]} 36.
exf4 {[%clk 0:01:49.7]} 36... Rxf4 {[%clk 0:02:14.2]} 37. Kd2 {[%clk 0:01:47.4]}
37... e3+ {[%clk 0:02:07.6]} 38. Ke2 {[%clk 0:01:45.8]} 38... Rxb4 {[%clk
0:02:06.5]} 39. Rh5 {[%clk 0:01:43.9]} 39... Rb3 {[%clk 0:02:03.7]} 40. Rh6+
{[%clk 0:01:42.1]} 40... Kc5 {[%clk 0:02:02.8]} 41. Rh5+ {[%clk 0:01:40.9]}
41... Kb6 {[%clk 0:01:56.5]} 42. Re5 {[%clk 0:01:39.5]} 42... c5 {[%clk
0:01:55.2]} 43. Rxe3 {[%clk 0:01:27]} 43... Rxe3+ {[%clk 0:01:53.2]} 44. Kxe3
{[%clk 0:01:26.5]} 44... Kb5 {[%clk 0:01:52.5]} 45. Kd2 {[%clk 0:01:15.8]} 45...
Kb4 {[%clk 0:01:50.8]} 46. Kd1 {[%clk 0:01:06.3]} 46... Kb3 {[%clk 0:01:48.3]}
47. Kc1 {[%clk 0:01:04.7]} 47... Kc3 {[%clk 0:01:45.5]} 48. Kd1 {[%clk
0:01:02.2]} 48... Kb2 {[%clk 0:01:41.3]} 49. Kd2 {[%clk 0:01:01]} 49... c4
{[%clk 0:01:40.5]} 0-1

[Event "Live Chess"]
[Site "Chess.com"]
[Date "2024.06.01"]
[Round "-"]
[White "Stanbad1"]
[Black "Isambard_Thomas"]
[Result "1-0"]
[WhiteElo "2667"]
[BlackElo "2165"]
[TimeControl "300"]
[EndTime "13:04:19 PDT"]
[Termination "Stanbad1 won by resignation"]

1. d4 {[%clk 0:04:57.5]} 1... Nf6 {[%clk 0:04:58.8]} 2. Nc3 {[%clk 0:04:53.5]}
2... d5 {[%clk 0:04:56.1]} 3. Bf4 {[%clk 0:04:52.9]} 3... c6 {[%clk 0:04:55.2]}
4. e3 {[%clk 0:04:52.2]} 4... e6 {[%clk 0:04:53.9]} 5. Nf3 {[%clk 0:04:51.1]}
5... Bd6 {[%clk 0:04:49.2]} 6. Ne5 {[%clk 0:04:49.8]} 6... Qc7 {[%clk
0:04:47.4]} 7. Qf3 {[%clk 0:04:48.6]} 7... Nbd7 {[%clk 0:04:38.5]} 8. Qg3 {[%clk
0:04:47.6]} 8... Nh5 {[%clk 0:04:27.8]} 9. Qg4 {[%clk 0:04:46.5]} 9... Ndf6
{[%clk 0:04:23.7]} 10. Qf3 {[%clk 0:04:41.5]} 10... Nxf4 {[%clk 0:04:20.9]} 11.
exf4 {[%clk 0:04:39.3]} 11... a6 {[%clk 0:04:14.8]} 12. O-O-O {[%clk 0:04:28.7]}
12... b5 {[%clk 0:04:07]} 13. g3 {[%clk 0:04:26.3]} 13... b4 {[%clk 0:04:03.4]}
14. Na4 {[%clk 0:04:24.1]} 14... a5 {[%clk 0:03:54.2]} 15. Be2 {[%clk
0:04:19.3]} 15... Ne4 {[%clk 0:03:43.1]} 16. Qe3 {[%clk 0:04:16.6]} 16... O-O
{[%clk 0:02:59]} 17. f3 {[%clk 0:04:10]} 17... Nf6 {[%clk 0:02:56.4]} 18. Bd3
{[%clk 0:04:08.9]} 18... Ba6 {[%clk 0:02:53.5]} 19. b3 {[%clk 0:04:05.1]} 19...
Bb5 {[%clk 0:02:47.6]} 20. Nc5 {[%clk 0:03:52.1]} 20... Bxc5 {[%clk 0:02:41.1]}
21. dxc5 {[%clk 0:03:52]} 21... a4 {[%clk 0:02:37.7]} 22. Qd4 {[%clk 0:03:49.6]}
22... Bxd3 {[%clk 0:02:30.7]} 23. Nxd3 {[%clk 0:03:47.8]} 23... axb3 {[%clk
0:02:28]} 24. axb3 {[%clk 0:03:47.7]} 24... Rfb8 {[%clk 0:02:12.5]} 25. Rhe1
{[%clk 0:03:45.5]} 25... Nd7 {[%clk 0:02:11.3]} 26. Nxb4 {[%clk 0:03:42.9]}
26... Qa5 {[%clk 0:01:57.9]} 27. Nxc6 {[%clk 0:03:39.9]} 27... Qa3+ {[%clk
0:01:56.7]} 28. Kd2 {[%clk 0:03:38.2]} 28... Qxc5 {[%clk 0:01:38.9]} 29. Qxc5
{[%clk 0:03:36.1]} 29... Nxc5 {[%clk 0:01:38.8]} 30. Nxb8 {[%clk 0:03:35.6]}
30... Rxb8 {[%clk 0:01:38.3]} 31. Ra1 {[%clk 0:03:35.2]} 31... h5 {[%clk
0:01:36.5]} 32. Ra5 {[%clk 0:03:32.8]} 32... Nd7 {[%clk 0:01:33.2]} 33. f5
{[%clk 0:03:31.1]} 33... Rb6 {[%clk 0:01:28.3]} 34. fxe6 {[%clk 0:03:29.8]}
34... fxe6 {[%clk 0:01:27.5]} 35. Ra7 {[%clk 0:03:28.9]} 35... Nf6 {[%clk
0:01:21.7]} 36. Re7 {[%clk 0:03:27.2]} 36... Rd6 {[%clk 0:01:01.3]} 37. R7xe6
{[%clk 0:03:25.6]} 37... Rxe6 {[%clk 0:01:00.1]} 38. Rxe6 {[%clk 0:03:23.8]}
38... Kf7 {[%clk 0:01:00]} 39. Rc6 {[%clk 0:03:22.7]} 39... g5 {[%clk
0:00:55.7]} 40. b4 {[%clk 0:03:21.5]} 40... g4 {[%clk 0:00:53.6]} 41. f4 {[%clk
0:03:19.5]} 41... Ne4+ {[%clk 0:00:52.3]} 42. Ke3 {[%clk 0:03:18.5]} 42... Ke7
{[%clk 0:00:44.2]} 43. Kd4 {[%clk 0:03:16.7]} 43... Nf6 {[%clk 0:00:40]} 44.
Rxf6 {[%clk 0:03:15.2]} 44... Kxf6 {[%clk 0:00:39.4]} 45. Kxd5 {[%clk
0:03:15.1]} 1-0

[Event "Live Chess"]
[Site "Chess.com"]
[Date "2024.06.01"]
[Round "-"]
[White "chessfiction"]
[Black "Plato_77"]
[Result "1-0"]
[WhiteElo "2395"]
[BlackElo "1362"]
[TimeControl "300"]
[EndTime "13:04:28 PDT"]
[Termination "chessfiction won on time"]

1. e4 {[%clk 0:04:56.7]} 1... c5 {[%clk 0:04:58.1]} 2. d4 {[%clk 0:04:54.8]}
2... cxd4 {[%clk 0:04:56.6]} 3. c3 {[%clk 0:04:54.7]} 3... Nf6 {[%clk
0:04:54.4]} 4. e5 {[%clk 0:04:52.6]} 4... Nd5 {[%clk 0:04:53.3]} 5. Nf3 {[%clk
0:04:52.3]} 5... Nc6 {[%clk 0:04:47.7]} 6. Bc4 {[%clk 0:04:50.3]} 6... e6 {[%clk
0:04:45.1]} 7. Bxd5 {[%clk 0:04:45]} 7... exd5 {[%clk 0:04:43.8]} 8. cxd4 {[%clk
0:04:44.9]} 8... d6 {[%clk 0:04:41.1]} 9. O-O {[%clk 0:04:44.3]} 9... Be7 {[%clk
0:04:34.7]} 10. Nc3 {[%clk 0:04:42]} 10... dxe5 {[%clk 0:04:32.1]} 11. dxe5
{[%clk 0:04:40.4]} 11... O-O {[%clk 0:04:30.8]} 12. Nxd5 {[%clk 0:04:39.5]}
12... Bc5 {[%clk 0:03:50.5]} 13. Bg5 {[%clk 0:04:36.8]} 13... Qa5 {[%clk
0:03:45.3]} 14. a3 {[%clk 0:04:29.3]} 14... Be6 {[%clk 0:02:58.8]} 15. b4 {[%clk
0:03:53.7]} 15... Bxf2+ {[%clk 0:02:56.6]} 16. Rxf2 {[%clk 0:03:48]} 16... Qxd5
{[%clk 0:02:54.9]} 17. Qxd5 {[%clk 0:03:45.8]} 17... Bxd5 {[%clk 0:02:54.8]} 18.
Bf4 {[%clk 0:03:38.4]} 18... h6 {[%clk 0:02:43.5]} 19. Rd1 {[%clk 0:03:31.7]}
19... Rfd8 {[%clk 0:02:42.3]} 20. Rfd2 {[%clk 0:03:28.3]} 20... Bb3 {[%clk
0:02:38.4]} 21. Rxd8+ {[%clk 0:03:25.8]} 21... Rxd8 {[%clk 0:02:37.1]} 22. Rxd8+
{[%clk 0:03:24.6]} 22... Nxd8 {[%clk 0:02:37]} 23. Nd4 {[%clk 0:03:23.5]} 23...
Bd5 {[%clk 0:02:34.5]} 24. Nf5 {[%clk 0:03:19.5]} 24... Kf8 {[%clk 0:02:30.5]}
25. Be3 {[%clk 0:03:17.6]} 25... b6 {[%clk 0:02:20.3]} 26. Nd6 {[%clk
0:03:05.9]} 26... Nc6 {[%clk 0:02:10.4]} 27. Bf4 {[%clk 0:02:53.1]} 27... g5
{[%clk 0:02:08.3]} 28. Bg3 {[%clk 0:02:49.8]} 28... Nd4 {[%clk 0:02:03.1]} 29.
Nc8 {[%clk 0:02:46]} 29... Nc6 {[%clk 0:01:52.1]} 30. b5 {[%clk 0:02:25.8]}
30... Nd4 {[%clk 0:01:47.4]} 31. Nxa7 {[%clk 0:02:22.7]} 31... Bc4 {[%clk
0:01:45.1]} 32. a4 {[%clk 0:02:14.5]} 32... Bb3 {[%clk 0:01:40.8]} 33. Bf2
{[%clk 0:02:09.1]} 33... Ne2+ {[%clk 0:01:12.8]} 34. Kf1 {[%clk 0:02:06.7]}
34... Nc3 {[%clk 0:01:04.8]} 35. Bxb6 {[%clk 0:02:03.1]} 35... Nxa4 {[%clk
0:00:54]} 36. Bd4 {[%clk 0:01:58.6]} 36... Bc4+ {[%clk 0:00:41.9]} 37. Kf2
{[%clk 0:01:57.1]} 37... Bd5 {[%clk 0:00:36.5]} 38. b6 {[%clk 0:01:54.8]} 38...
Ke7 {[%clk 0:00:32.3]} 39. Nb5 {[%clk 0:01:53.2]} 39... Kd7 {[%clk 0:00:16.4]}
40. Nd6 {[%clk 0:01:51]} 40... Ke6 {[%clk 0:00:12.2]} 41. b7 {[%clk 0:01:49.5]}
41... Bxb7 {[%clk 0:00:11.8]} 42. Nxb7 {[%clk 0:01:49.4]} 42... Kd5 {[%clk
0:00:11.4]} 43. Ba1 {[%clk 0:01:47.6]} 43... Nb6 {[%clk 0:00:08.9]} 44. Nd8
{[%clk 0:01:46.7]} 44... Nc4 {[%clk 0:00:05.8]} 45. Nxf7 {[%clk 0:01:45.5]}
45... Ke6 {[%clk 0:00:05.7]} 46. Nxh6 {[%clk 0:01:44.7]} 46... Nxe5 {[%clk
0:00:05.6]} 47. Bxe5 {[%clk 0:01:43.2]} 47... Kxe5 {[%clk 0:00:05.5]} 48. Nf7+
{[%clk 0:01:42.7]} 48... Kf5 {[%clk 0:00:05.4]} 49. Nxg5 {[%clk 0:01:42.5]}
49... Kxg5 {[%clk 0:00:04.6]} 50. Kg3 {[%clk 0:01:42.4]} 50... Kh5 {[%clk
0:00:03.9]} 51. h4 {[%clk 0:01:40.9]} 51... Kh6 {[%clk 0:00:02.7]} 52. Kh3
{[%clk 0:01:40.4]} 52... Kh7 {[%clk 0:00:02.6]} 53. g4 {[%clk 0:01:40.3]} 53...
Kg7 {[%clk 0:00:02.3]} 54. Kg3 {[%clk 0:01:40.2]} 54... Kh8 {[%clk 0:00:02]} 55.
Kf4 {[%clk 0:01:40.1]} 55... Kh7 {[%clk 0:00:01.6]} 56. Kg5 {[%clk 0:01:40]}
56... Kg7 {[%clk 0:00:01.2]} 57. h5 {[%clk 0:01:39.4]} 57... Kh8 {[%clk
0:00:01.1]} 58. Kf5 {[%clk 0:01:39.3]} 58... Kg8 {[%clk 0:00:00.7]} 59. g5
{[%clk 0:01:39.2]} 59... Kg7 {[%clk 0:00:00.3]} 60. Kg4 {[%clk 0:01:37.6]} 60...
Kh8 {[%clk 0:00:00.2]} 61. g6 {[%clk 0:01:37.1]} 1-0